fUST/lending_fUST_20250226
["ID","MTS","AMOUNT","RATE_DAILY","PERIOD"]
[354520134,1740551508729,-1000.0,0.00059587,15]
[354520135,1740551508759,-1000.0,0.00059587,15]
[354520136,1740551508790,-1000.0,0.00059587,15]
[354520137,1740551508823,-107121.31,0.000596,30]
[354520138,1740551508853,-1000.0,0.00059689,14]
[354520139,1740551508890,-1896.67,0.00059726,120]
[354520140,1740551508921,-3600.0,0.00059859,120]
[354520141,1740551508954,-3594.37528279,0.000599,120]
[354520142,1740551508986,-151.0,0.00059918,120]
[354520143,1740551509024,-503.0628108,0.0006,120]
[354520144,1740551509056,-1300.88580777,0.0006,120]
[354520145,1740551509088,-300.0,0.0006,120]
[354520146,1740551509119,-500.0,0.0006,14]
[354520147,1740551509152,-500.0,0.0006,14]
[354520148,1740551509182,-500.0,0.0006,14]
[354520149,1740551509212,-500.0,0.0006,14]
[354520150,1740551509242,-500.0,0.0006,14]
[354520151,1740551509273,-500.0,0.0006,14]
[354520152,1740551509304,-500.0,0.0006,14]
[354520153,1740551509336,-500.0,0.0006,14]
[354520154,1740551509366,-500.0,0.0006,14]
[354520155,1740551509395,-500.0,0.0006,14]
[354520156,1740551509423,-500.0,0.0006,14]
[354520157,1740551509452,-196.90877201,0.0006,30]
[354520158,1740551509481,-269.80643761,0.0006,120]
[354520159,1740551509509,-695.88385435,0.0006,12]
[354520160,1740551509538,-1000.0,0.0006,120]
[354520161,1740551509567,-500.0,0.0006,120]
[354520162,1740551509597,-1000.0,0.0006,120]
[354520163,1740551509738,-2000.0,0.0006,120]
[354520164,1740551509768,-500.0,0.0006,14]
[354520165,1740551509795,-500.0,0.0006,14]
[354520166,1740551509823,-500.0,0.0006,14]
[354520167,1740551509851,-500.0,0.0006,14]
[354520168,1740551509880,-500.0,0.0006,14]
[354520169,1740551509910,-500.0,0.0006,14]
[354520170,1740551509940,-500.0,0.0006,14]
[354520171,1740551509971,-500.0,0.0006,14]
[354520172,1740551510000,-500.0,0.0006,14]
[354520173,1740551510030,-548.1,0.0006,14]
[354520174,1740551510061,-1896.67,0.00060273,120]
[354520175,1740551510090,-2111.89,0.00060273,120]
[354520176,1740551510119,-1000.0,0.00060352,14]
[354520177,1740551510151,-3600.0,0.00060407,120]
[354520178,1740551510180,-420.74756144,0.00060452,120]
[354520179,1740551510211,-1000.0,0.00060452,15]
[354520180,1740551510240,-1000.0,0.00060452,15]
[354520181,1740551510271,-1000.0,0.00060452,15]
[354520182,1740551510301,-1000.72231497,0.00060452,15]
[354520183,1740551510329,-1000.0,0.00060452,15]
[354520184,1740551510359,-1000.0,0.00060452,15]
[354520185,1740551510389,-1000.0,0.00060452,15]
[354520186,1740551510417,-1000.0,0.00060452,15]
[354520187,1740551510447,-1000.0,0.00060452,14]
[354520188,1740551510476,-1000.0,0.00060452,15]
[354520189,1740551510504,-1896.67,0.00060821,120]
[354520190,1740551510533,-2111.89,0.00060821,120]
[354520191,1740551510563,-151.0,0.00060849,120]
[354520192,1740551510591,-1065.67,0.000609,30]
[354520193,1740551510620,-3600.0,0.00060955,120]
[354520194,1740551510650,-15464.0,0.00061,120]
[354520195,1740551510678,-208.38,0.00061095,120]
[354520196,1740551510705,-208.38,0.00061095,120]
[354520197,1740551510732,-208.38,0.00061095,120]
[354520198,1740551510760,-208.38,0.00061095,120]
[354520199,1740551510795,-208.38,0.00061095,120]
[354520200,1740551510823,-208.38,0.00061095,120]
[354520201,1740551510851,-208.38,0.00061095,120]
[354520202,1740551510879,-208.38,0.00061095,120]
[354520203,1740551510908,-208.38,0.00061095,120]
[354520204,1740551510937,-208.38,0.00061095,120]
[354520205,1740551510967,-208.38,0.00061095,120]
[354520206,1740551510997,-208.38,0.00061095,120]
[354520207,1740551511027,-208.38,0.00061095,120]
[354520208,1740551511056,-208.38,0.00061095,120]
[354520209,1740551511085,-208.38,0.00061095,120]
[354520210,1740551511114,-208.38,0.00061095,120]
[354520211,1740551511143,-208.38,0.00061095,120]
[354520212,1740551511171,-208.38,0.00061095,120]
[354520213,1740551511200,-208.38,0.00061095,120]
[354520214,1740551511230,-208.38,0.00061095,120]
[354520215,1740551511259,-208.38,0.00061095,120]
[354520216,1740551511288,-208.38,0.00061095,120]
[354520217,1740551511317,-208.38,0.00061095,120]
[354520218,1740551511346,-208.51832211,0.00061095,120]
[354520219,1740551511375,-160.0,0.00061099,90]
[354520220,1740551511405,-1896.67,0.00061369,120]
[354520221,1740551511433,-2111.89,0.00061369,120]
[354520222,1740551511461,-151.0,0.00061369,120]
[354520223,1740551511490,-186.322582,0.00061369,110]
[354520224,1740551511517,-186.322582,0.00061369,110]
[354520225,1740551511545,-1183.224508,0.00061369,14]
[354520226,1740551511573,-1183.224508,0.00061369,14]
[354520227,1740551511605,-43428.05164515,0.00061503,61]
[354520228,1740551511632,-3600.0,0.00061503,120]
[354520229,1740551511663,-151.0,0.00061781,120]
[354520230,1740551511693,-1896.67,0.00061917,120]
[354520231,1740551511721,-2111.89,0.00061917,120]
[354520232,1740551511750,-3600.0,0.00062051,120]
[354520233,1740551511780,-318.829,0.00062462,120]
[354520234,1740551511810,-1896.67,0.00062465,120]
[354520235,1740551511838,-2111.89,0.00062465,120]
[354520236,1740551511867,-500.0,0.00062512,120]
[354520237,1740551511897,-3600.0,0.00062599,120]
[354520238,1740551511927,-151.0,0.00062712,120]
[354520239,1740551511958,-2819.94,0.000628,14]
[354520240,1740551511990,-2032.15,0.00063,30]
[354520241,1740551512022,-20000.0,0.00063,120]
[354520242,1740551512053,-20000.0,0.00063,120]
[354520243,1740551512081,-10000.0,0.00063,120]
[354520244,1740551512111,-201.036948,0.00063,120]
[354520245,1740551512147,-201.036948,0.00063,120]
[354520246,1740551512178,-151.0,0.00063,120]
[354520247,1740551512208,-1896.67,0.00063013,120]
[354520248,1740551512239,-2111.89,0.00063013,120]
[354520249,1740551512270,-3517.16,0.00063013,120]
[354520250,1740551512299,-3600.0,0.00063147,120]
[354520251,1740551512327,-6743.30667003,0.0006327,120]
[354520252,1740551512356,-6743.30667003,0.0006327,120]
[354520253,1740551512383,-2000.0,0.00063522,120]
[354520254,1740551512414,-1896.67,0.00063561,120]
[354520255,1740551512443,-2111.89,0.00063561,120]
[354520256,1740551512477,-151.0,0.00063644,120]
[354520257,1740551512506,-3600.0,0.00063695,120]
[354520258,1740551512683,-107121.31,0.000637,30]
[354520259,1740551512714,-50000.0,0.00064,120]
[354520260,1740551512744,-156.22867944,0.00064,120]
[354520261,1740551512781,-81222.5077,0.00064,120]
[354520262,1740551512820,-10000.0,0.00064,120]
[354520263,1740551512853,-15464.0,0.00064,120]
[354520264,1740551512889,-151.0,0.00064,120]
[354520265,1740551512921,-186.322582,0.00064,110]
[354520266,1740551512953,-186.322582,0.00064,110]
[354520267,1740551512987,-1183.224508,0.00064,14]
[354520268,1740551513017,-1183.224508,0.00064,14]
[354520269,1740551513046,-201.036948,0.00064,120]
[354520270,1740551513075,-201.036948,0.00064,120]
[354520271,1740551513105,-1896.67,0.00064109,120]
[354520272,1740551513134,-2111.89,0.00064109,120]
[354520273,1740551513165,-2329.39503813,0.00064243,120]
[354520274,1740551513196,-151.0,0.00064575,120]
[354520275,1740551513226,-1065.67,0.000646,30]
[354520276,1740551513257,-1896.67,0.00064657,120]
[354520277,1740551513287,-2111.89,0.00064657,120]
[354520278,1740551513315,-1000.0,0.00065,60]
[354520279,1740551513344,-2453.32208656,0.00065,120]
[354520280,1740551513374,-1000.0,0.00065,120]
[354520281,1740551513404,-10000.0,0.00065,120]
[354520282,1740551513434,-1896.67,0.00065205,120]
[354520283,1740551513463,-2111.89,0.00065205,120]
[354520284,1740551513491,-151.0,0.00065507,120]
[354520285,1740551513519,-1896.67,0.00065753,120]
[354520286,1740551513548,-2111.89,0.00065753,120]
[354520287,1740551513841,2200.0,0.00064,120]
[354520288,1740551521966,1695.04,0.00043835,120]
[354520289,1740551522221,1695.04,0.00044109,120]
[354520290,1740551522475,1695.04,0.00044383,120]
[354520291,1740551522728,1695.12,0.00044657,120]
[354520292,1740551523520,1689.05,0.00043835,120]
[354520293,1740551523773,1689.05,0.00044109,120]
[354520294,1740551524030,1689.05,0.00044383,120]
[354520295,1740551524268,1689.07419205,0.00044657,120]
[354520296,1740551524335,500.0,0.00041459,10]
[354520297,1740551524371,162.22053201,0.00054973,14]
[354520298,1740551524412,1000.0,0.00046939,10]
[354520299,1740551653805,-1030.0,0.00042803,30]
[354520300,1740551653836,-693.20152352,0.00042803,120]
[354520301,1740551848918,10000.0,0.00042803,30]
[354520302,1740552603176,412.58633832,0.00010001,2]
[354520303,1740552603207,35.60366168,0.00010001,2]
[354520304,1740552619618,962.0,0.00042991,120]
[354520337,1740552632121,-545.9563782,0.00036341,2]
[354520338,1740552632131,-177.53437747,0.00038256,2]
[354520339,1740552632141,-3042.56419648,0.00038256,110]
[354520340,1740552632251,-489.52424075,0.00038256,110]
[354520341,1740552632261,-162.60191816,0.00038256,2]
[354520342,1740552632270,-155.188,0.00038355,51]
[354520343,1740552632280,-500.01750738,0.00038356,2]
[354520344,1740552632289,-521.75497069,0.00038356,2]
[354520345,1740552632302,-500.0,0.00038356,2]
[354520346,1740552632312,-500.0,0.00038356,2]
[354520347,1740552632321,-501.07509968,0.00038356,2]
[354520348,1740552632331,-500.0,0.00038356,2]
[354520349,1740552632341,-500.0,0.00038356,2]
[354520350,1740552632351,-500.0,0.00038356,2]
[354520351,1740552632360,-500.0,0.00038356,2]
[354520352,1740552632369,-500.0,0.00038356,2]
[354520353,1740552632380,-500.0,0.00038356,2]
[354520354,1740552632389,-500.0,0.00038356,2]
[354520356,1740552632399,-447.51791685,0.00038356,2]
[354520359,1740552632411,-52.48208315,0.00038356,2]
[354520361,1740552632420,-330.06897509,0.00038356,2]
[354520363,1740552632430,-500.0,0.00038356,2]
[354520365,1740552632439,-100.56487672,0.00038356,2]
[354520367,1740552632451,-399.7299197,0.00038356,2]
[354520369,1740552632460,-500.0,0.00038356,2]
[354520371,1740552632471,-500.0,0.00038356,2]
[354520373,1740552632480,-500.0,0.00038356,2]
[354520374,1740552632489,-503.11871147,0.00038356,2]
[354520375,1740552632499,-501.09649719,0.00038356,2]
[354520376,1740552632508,-500.0,0.00038356,2]
[354520377,1740552632517,-500.0,0.00038356,2]
[354520378,1740552632526,-500.0,0.00038356,2]
[354520379,1740552632536,-500.0,0.00038356,2]
[354520380,1740552632546,-340.39559395,0.00038356,2]
[354520381,1740552632556,-500.769834,0.00038356,2]
[354520382,1740552632565,-500.0,0.00038356,2]
[354520383,1740552632574,-500.0,0.00038356,2]
[354520384,1740552632583,-501.32469978,0.00038356,2]
[354520385,1740552632592,-500.0,0.00038356,2]
[354520386,1740552632602,-500.0,0.00038356,2]
[354520387,1740552632611,-500.0,0.00038356,2]
[354520388,1740552632620,-500.0,0.00038356,2]
[354520389,1740552632629,-500.0,0.00038356,2]
[354520390,1740552632639,-500.0,0.00038356,2]
[354520391,1740552632648,-500.0,0.00038356,2]
[354520392,1740552632657,-500.0,0.00038356,2]
[354520393,1740552632666,-500.0,0.00038356,2]
[354520394,1740552632676,-500.0,0.00038356,2]
[354520395,1740552632685,-48.33549998,0.00038356,2]
[354520435,1740552637906,-451.66450002,0.00038356,2]
[354520437,1740552637915,-500.0,0.00038356,2]
[354520439,1740552637924,-2.83009856,0.00038356,2]
[354520441,1740552637936,-497.16990144,0.00038356,2]
[354520443,1740552637945,-500.0,0.00038356,2]
[354520444,1740552637954,-500.0,0.00038356,2]
[354520446,1740552637963,-500.0,0.00038356,2]
[354520448,1740552637972,-500.0,0.00038356,2]
[354520450,1740552637981,-500.0,0.00038356,2]
[354520452,1740552637991,-500.0,0.00038356,2]
[354520453,1740552638000,-501.11505285,0.00038356,2]
[354520455,1740552638010,-500.0,0.00038356,2]
[354520457,1740552638019,-500.0,0.00038356,2]
[354520459,1740552638029,-500.0,0.00038356,2]
[354520460,1740552638038,-500.0,0.00038356,2]
[354520461,1740552638047,-500.0,0.00038356,2]
[354520463,1740552638057,-500.0,0.00038356,2]
[354520465,1740552638066,-500.0,0.00038356,2]
[354520467,1740552638076,-500.68210696,0.00038356,2]
[354520469,1740552638086,-500.0,0.00038356,2]
[354520470,1740552638095,-234.1638641,0.00038356,2]
[354520472,1740552638105,-500.0,0.00038356,2]
[354520474,1740552638114,-500.0,0.00038356,2]
[354520476,1740552638124,-631.15116738,0.00038356,2]
[354520478,1740552638134,-500.0,0.00038356,2]
[354520480,1740552638143,-500.0,0.00038356,2]
[354520482,1740552638152,-500.0,0.00038356,2]
[354520483,1740552638165,-500.0,0.00038356,2]
[354520484,1740552638175,-500.0,0.00038356,2]
[354520485,1740552638184,-500.0,0.00038356,2]
[354520486,1740552638193,-500.0,0.00038356,2]
[354520487,1740552638203,-500.775095,0.00038356,2]
[354520488,1740552638213,-500.0,0.00038356,2]
[354520489,1740552638223,-533.70090437,0.00038356,2]
[354520490,1740552638233,-500.0,0.00038356,2]
[354520491,1740552638244,-500.0,0.00038356,2]
[354520492,1740552638254,-529.47386097,0.00038356,2]
[354520493,1740552638264,-500.0,0.00038356,2]
[354520494,1740552638273,-500.0,0.00038356,2]
[354520495,1740552638285,-500.0,0.00038356,2]
[354520496,1740552638296,-500.0,0.00038356,2]
[354520497,1740552638308,-500.0,0.00038356,2]
[354520498,1740552638317,-500.0,0.00038356,2]
[354520499,1740552638327,-500.0,0.00038356,2]
[354520500,1740552638336,-500.0,0.00038356,2]
[354520501,1740552638514,-500.0,0.00038356,2]
[354520502,1740552638524,-500.0,0.00038356,2]
[354520503,1740552638534,-507.69001637,0.00038356,2]
[354520504,1740552638543,-500.0,0.00038356,2]
[354520505,1740552638552,-500.0,0.00038356,2]
[354520506,1740552638562,-500.0,0.00038356,2]
[354520507,1740552638571,-500.0,0.00038356,2]
[354520508,1740552638580,-500.0,0.00038356,2]
[354520509,1740552638590,-500.0,0.00038356,2]
[354520510,1740552638599,-500.0,0.00038356,2]
[354520511,1740552638608,-500.0,0.00038356,2]
[354520512,1740552638618,-500.0,0.00038356,2]
[354520513,1740552638627,-500.0,0.00038356,2]
[354520514,1740552638638,-500.0,0.00038356,2]
[354520515,1740552638647,-500.0,0.00038356,2]
[354520516,1740552638656,-355.47764132,0.00038356,2]
[354520517,1740552638666,-500.0,0.00038356,2]
[354520518,1740552638675,-318.0916926,0.00038356,2]
[354520519,1740552638685,-500.0,0.00038356,2]
[354520520,1740552638694,-500.0,0.00038356,2]
[354520521,1740552638703,-500.0,0.00038356,2]
[354520522,1740552638712,-500.0,0.00038356,2]
[354520523,1740552638722,-500.0,0.00038356,2]
[354520524,1740552638732,-500.0,0.00038356,2]
[354520525,1740552638743,-500.0,0.00038356,2]
[354520526,1740552638754,-500.0,0.00038356,2]
[354520527,1740552638763,-500.0,0.00038356,2]
[354520528,1740552638772,-500.0,0.00038356,2]
[354520529,1740552638781,-500.0,0.00038356,2]
[354520530,1740552638790,-500.0,0.00038356,2]
[354520531,1740552638799,-500.0,0.00038356,2]
[354520532,1740552638809,-500.0,0.00038356,2]
[354520533,1740552638818,-500.0,0.00038356,2]
[354520534,1740552638827,-500.0,0.00038356,2]
[354520535,1740552638836,-330.35959419,0.00038356,2]
[354520536,1740552638845,-500.0,0.00038356,2]
[354520537,1740552638854,-500.0,0.00038356,2]
[354520538,1740552638863,-500.0,0.00038356,2]
[354520539,1740552638872,-500.0,0.00038356,2]
[354520540,1740552638881,-500.0,0.00038356,2]
[354520541,1740552638890,-500.0,0.00038356,2]
[354520542,1740552638900,-500.0,0.00038356,2]
[354520543,1740552638910,-500.0,0.00038356,2]
[354520544,1740552638919,-500.0,0.00038356,2]
[354520545,1740552638928,-500.0,0.00038356,2]
[354520546,1740552638937,-500.0,0.00038356,2]
[354520547,1740552638947,-500.0,0.00038356,2]
[354520548,1740552638956,-500.0,0.00038356,2]
[354520549,1740552638964,-500.0,0.00038356,2]
[354520550,1740552638974,-500.0,0.00038356,2]
[354520551,1740552638983,-250.71038083,0.00038356,2]
[354520552,1740552638992,-500.0,0.00038356,2]
[354520553,1740552639002,-500.0,0.00038356,2]
[354520554,1740552639011,-500.0,0.00038356,2]
[354520555,1740552639020,-501.89024376,0.00038356,2]
[354520556,1740552639029,-500.0,0.00038356,2]
[354520557,1740552639039,-500.0,0.00038356,2]
[354520558,1740552639048,-500.0,0.00038356,2]
[354520559,1740552639057,-500.0,0.00038356,2]
[354520560,1740552639066,-500.0,0.00038356,2]
[354520561,1740552639076,-500.54762418,0.00038356,2]
[354520562,1740552639085,-414.81417311,0.00038356,2]
[354520563,1740552639095,-501.20620743,0.00038356,2]
[354520564,1740552639104,-500.0,0.00038356,2]
[354520565,1740552639113,-500.0,0.00038356,2]
[354520566,1740552639122,-500.0,0.00038356,2]
[354520567,1740552639132,-187.05627061,0.00038356,2]
[354520568,1740552639149,-312.94372939,0.00038356,2]
[354520569,1740552639159,-500.0,0.00038356,2]
[354520570,1740552639169,-500.0,0.00038356,2]
[354520571,1740552639178,-500.0,0.00038356,2]
[354520572,1740552639187,-500.90195403,0.00038356,2]
[354520573,1740552639197,-500.0,0.00038356,2]
[354520574,1740552639207,-500.0,0.00038356,2]
[354520575,1740552639217,-497.14701257,0.00038356,2]
[354520576,1740552639229,-2.85298743,0.00038356,2]
[354520577,1740552639239,-500.0,0.00038356,2]
[354520578,1740552639249,-500.0,0.00038356,2]
[354520579,1740552639258,-500.0,0.00038356,2]
[354520580,1740552639268,-633.94759213,0.00038356,2]
[354520581,1740552639278,-500.0,0.00038356,2]
[354520582,1740552639287,-503.97746433,0.00038356,2]
[354520583,1740552639297,-501.12807965,0.00038356,2]
[354520584,1740552639309,-500.0,0.00038356,2]
[354520585,1740552639319,-500.0,0.00038356,2]
[354520586,1740552639328,-500.0,0.00038356,2]
[354520587,1740552639338,-500.0,0.00038356,2]
[354520588,1740552639349,-136.42551336,0.00038356,2]
[354520589,1740552639390,-363.57448664,0.00038356,2]
[354520590,1740552639399,-282.64000079,0.00038356,2]
[354520591,1740552639409,-500.0,0.00038356,2]
[354520592,1740552639418,-544.85,0.00038356,2]
[354520593,1740552639427,-500.0,0.00038356,2]
[354520594,1740552639437,-503.98478958,0.00038356,2]
[354520595,1740552639446,-500.0,0.00038356,2]
[354520596,1740552639455,-500.0,0.00038356,2]
[354520597,1740552639465,-500.0,0.00038356,2]
[354520598,1740552639476,-500.0,0.00038356,2]
[354520599,1740552639494,-500.0,0.00038356,2]
[354520600,1740552639505,-500.0,0.00038356,2]
[354520601,1740552639515,-500.0,0.00038356,2]
[354520602,1740552639525,-500.0,0.00038356,2]
[354520603,1740552639535,-500.0,0.00038356,2]
[354520604,1740552639545,-500.0,0.00038356,2]
[354520605,1740552639555,-500.0,0.00038356,2]
[354520606,1740552639565,-500.0,0.00038356,2]
[354520608,1740552639575,-500.0,0.00038356,2]
[354520609,1740552639585,-500.0,0.00038356,2]
[354520610,1740552639596,-207.04739527,0.00038356,2]
[354520612,1740552639605,-500.0,0.00038356,2]
[354520614,1740552639615,-500.0,0.00038356,2]
[354520615,1740552639624,-500.0,0.00038356,2]
[354520616,1740552639634,-170.97746861,0.00038356,2]
[354520617,1740552639645,-500.0,0.00038356,2]
[354520618,1740552639654,-500.0,0.00038356,2]
[354520619,1740552639664,-523.65165531,0.00038356,2]
[354520620,1740552639674,-500.0,0.00038356,2]
[354520621,1740552639684,-502.00621796,0.00038356,2]
[354520622,1740552639694,-500.0,0.00038356,2]
[354520623,1740552639704,-500.0,0.00038356,2]
[354520624,1740552639714,-500.0,0.00038356,2]
[354520625,1740552639724,-500.0,0.00038356,2]
[354520626,1740552639734,-509.37,0.00038356,2]
[354520628,1740552639743,-500.0,0.00038356,2]
[354520630,1740552639753,-501.07923221,0.00038356,2]
[354520632,1740552639763,-500.0,0.00038356,2]
[354520633,1740552639772,-500.0,0.00038356,2]
[354520634,1740552639782,-500.0,0.00038356,2]
[354520635,1740552639792,-503.31267546,0.00038356,2]
[354520636,1740552639801,-500.0,0.00038356,2]
[354520637,1740552639810,-503.75853387,0.00038356,2]
[354520638,1740552639819,-500.0,0.00038356,2]
[354520639,1740552639830,-500.0,0.00038356,2]
[354520640,1740552639839,-500.0,0.00038356,2]
[354520641,1740552639849,-504.11662387,0.00038356,2]
[354520642,1740552639858,-254.29736655,0.00038356,2]
[354520643,1740552639868,-500.0,0.00038356,2]
[354520644,1740552639877,-500.0,0.00038356,2]
[354520645,1740552639888,-500.0,0.00038356,2]
[354520646,1740552639898,-500.0,0.00038356,2]
[354520647,1740552639908,-181.77956208,0.00038356,2]
[354520648,1740552639917,-502.57269803,0.00038356,2]
[354520649,1740552639927,-178.98622062,0.00038356,2]
[354520653,1740552640182,-324.11975894,0.00038356,2]
[354520654,1740552640192,-500.0,0.00038356,2]
[354520655,1740552640201,-46.49255446,0.00038356,2]
[354520690,1740553126158,988.66,0.00025,10]
[354520730,1740553832153,-333.999999,0.0002988,2]
[354520732,1740553832164,-250.0,0.0003565,2]
[354520734,1740553832174,-48.07059827,0.00035668,2]
[354520737,1740553832210,-351.92940173,0.00035668,2]
[354520738,1740553832219,-848.07060027,0.00035669,2]
[354520755,1740553832365,-2275.99578112,0.00035669,2]
[354521368,1740553838043,-2826.76286521,0.00035669,2]
[354521371,1740553838053,-904.34682439,0.00036271,98]
[354521374,1740553838064,-1921.32392541,0.00036271,98]
[354521377,1740553838073,-1997.02225559,0.00036371,2]
[354521381,1740553838085,-2851.46325109,0.00036371,2]
[354521385,1740553838096,-5852.41642102,0.00036371,2]
[354521388,1740553838106,-499.999999,0.0003789,2]
[354521391,1740553838115,-288.57419628,0.000381,2]
[354521394,1740553838124,-288.57419627,0.000381,2]
[354521397,1740553838134,-288.57419627,0.000381,2]
[354521400,1740553838143,-401.28565327,0.000382,2]
[354521403,1740553838153,-500.0,0.00038218,2]
[354521406,1740553838162,-157.36314825,0.00038255,2]
[354521436,1740553838350,-3000.0,0.00038256,2]
[354521438,1740553838362,-163.58385912,0.00038256,2]
[354521441,1740553838372,-155.188,0.00038355,51]
[354521442,1740553838382,-635.61,0.00038355,15]
[354521444,1740553838391,-635.61,0.00038355,15]
[354521446,1740553838401,-635.61,0.00038355,15]
[354521448,1740553838410,-635.61,0.00038355,15]
[354521450,1740553838419,-635.61,0.00038355,15]
[354521452,1740553838429,-632.61889412,0.00038355,15]
[354521455,1740553838439,-632.61889412,0.00038355,15]
[354521457,1740553838449,-632.61889412,0.00038355,15]
[354521458,1740553838458,-95.02301442,0.00038355,15]
[354521461,1740553838471,-537.5958797,0.00038355,15]
[354521463,1740553838480,-632.61889412,0.00038355,15]
[354521465,1740553838489,-632.61889412,0.00038355,15]
[354521467,1740553838499,-632.61889412,0.00038355,15]
[354521469,1740553838508,-630.63632778,0.00038355,15]
[354521471,1740553838517,-630.63632778,0.00038355,15]
[354521472,1740553838525,-630.63632778,0.00038355,15]
[354521473,1740553838535,-488.81610746,0.00038355,15]
[354521474,1740553838548,-141.82022032,0.00038355,15]
[354521475,1740553838557,-630.63632778,0.00038355,15]
[354521476,1740553838566,-630.63632778,0.00038355,15]
[354521477,1740553838575,-630.63632778,0.00038355,15]
[354521478,1740553838584,-630.63632778,0.00038355,15]
[354521479,1740553838594,-630.63632778,0.00038355,15]
[354521480,1740553838603,-630.63632778,0.00038355,15]
[354521481,1740553838612,-630.63632778,0.00038355,15]
[354521482,1740553838622,-630.63632778,0.00038355,15]
[354521483,1740553838631,-630.63632778,0.00038355,15]
[354521484,1740553838640,-630.63632778,0.00038355,15]
[354521485,1740553838649,-630.63632778,0.00038355,15]
[354521486,1740553838658,-630.63632778,0.00038355,15]
[354521487,1740553838667,-630.63632778,0.00038355,15]
[354521488,1740553838677,-630.63632778,0.00038355,15]
[354521489,1740553838686,-630.63632778,0.00038355,15]
[354521490,1740553838696,-630.63632778,0.00038355,15]
[354521491,1740553838705,-630.63632778,0.00038355,15]
[354521492,1740553838718,-630.63632778,0.00038355,15]
[354521493,1740553838728,-630.63632778,0.00038355,15]
[354521494,1740553838737,-630.63632778,0.00038355,15]
[354521495,1740553838747,-630.63632778,0.00038355,15]
[354521496,1740553838757,-630.63632778,0.00038355,15]
[354521497,1740553838766,-630.63632778,0.00038355,15]
[354521498,1740553838776,-630.63632778,0.00038355,15]
[354521499,1740553838787,-630.63632778,0.00038355,15]
[354521501,1740553838796,-630.63632778,0.00038355,15]
[354521502,1740553838806,-630.63632778,0.00038355,15]
[354521503,1740553838816,-630.63632778,0.00038355,15]
[354521505,1740553838825,-630.63632778,0.00038355,15]
[354521507,1740553838835,-630.63632778,0.00038355,15]
[354521509,1740553838845,-630.63632778,0.00038355,15]
[354521511,1740553838855,-630.63632778,0.00038355,15]
[354521513,1740553838864,-630.63632778,0.00038355,15]
[354521515,1740553838874,-630.63632778,0.00038355,15]
[354521517,1740553838884,-630.63632778,0.00038355,15]
[354521519,1740553838893,-630.63632778,0.00038355,15]
[354521521,1740553838902,-630.63632778,0.00038355,15]
[354521524,1740553838912,-630.63632778,0.00038355,15]
[354521526,1740553838921,-630.63632778,0.00038355,15]
[354521528,1740553838933,-630.63632778,0.00038355,15]
[354521530,1740553838942,-630.63632778,0.00038355,15]
[354521532,1740553838952,-630.63632778,0.00038355,15]
[354521534,1740553838961,-630.63632778,0.00038355,15]
[354521536,1740553838970,-630.63632778,0.00038355,15]
[354521538,1740553838979,-630.63632778,0.00038355,15]
[354521540,1740553838989,-632.38809536,0.00038355,15]
[354521542,1740553838998,-632.38809536,0.00038355,15]
[354521544,1740553839007,-632.38809536,0.00038355,15]